fUSD/lending_fUSD_20241206
["ID","MTS","AMOUNT","RATE_DAILY","PERIOD"]
[344426924,1733454647783,-3000.0,0.0001,2]
[344426925,1733454647792,-3000.0,0.0001,2]
[344426926,1733454647802,-3000.0,0.0001,2]
[344426927,1733454647811,-200.0,0.0001,3]
[344426928,1733454647821,-662.45647405,0.0001,2]
[344426929,1733454647831,-1308.61640146,0.0001,2]
[344426930,1733454647842,-13715.0,0.0001,2]
[344426931,1733454647852,-5781.95834441,0.0001,2]
[344426932,1733454647863,-5781.95834441,0.0001,2]
[344426933,1733454647878,-5781.95834441,0.0001,2]
[344426934,1733454647887,-5964.0,0.0001,2]
[344426935,1733454647897,-150.0,0.0001,2]
[344426936,1733454647907,-1166.0,0.0001,2]
[344426937,1733454647918,-768.05,0.00010036,2]
[344426938,1733454647928,-768.15,0.00010036,2]
[344426939,1733454647938,-435.43,0.00010036,2]
[344426940,1733454647950,-1536.1,0.00010036,2]
[344426941,1733454647963,-768.05,0.00010036,2]
[344426942,1733454647973,-1536.1,0.00010036,2]
[344426943,1733454647984,-150.25,0.00010046,2]
[344426944,1733454647994,-484.19,0.00010046,2]
[344426945,1733454648004,-81264.27072206,0.00010099,2]
[344426946,1733454648014,-81264.27072201,0.00010099,2]
[344426947,1733454648024,-81264.27072201,0.00010099,2]
[344426948,1733454648034,-81264.27072201,0.00010099,2]
[344426949,1733454648044,-81264.27072201,0.00010099,2]
[344426950,1733454648055,-78215.13674707,0.00010099,2]
[344426951,1733454648065,-78215.13674705,0.00010099,2]
[344426952,1733454648075,-78215.13674705,0.00010099,2]
[344426953,1733454648086,-78215.13674705,0.00010099,2]
[344426954,1733454648096,-78215.13674705,0.00010099,2]
[344426955,1733454648106,-420.43058247,0.00010176,2]
[344426956,1733454648116,-1252.0,0.00010247,2]
[344426957,1733454648126,-1152.0,0.00010247,2]
[344426958,1733454648137,-1000.0,0.00010274,2]
[344426959,1733454648147,-5564.0,0.000103,3]
[344426960,1733454648160,-1241.46154335,0.0001032,2]
[344426961,1733454648170,-4236.44,0.00010382,2]
[344426962,1733454648180,-784.48459052,0.00010456,2]
[344426963,1733454648190,-420.43058247,0.00010461,2]
[344426964,1733454648204,-150.25,0.00010502,2]
[344426965,1733454648215,-484.19,0.00010502,2]
[344426966,1733454648226,-81264.27072201,0.00010536,2]
[344426967,1733454648236,-78215.13674705,0.00010536,2]
[344426968,1733454648248,-5564.0,0.000106,5]
[344426969,1733454648261,-1535.66,0.00010741,2]
[344426970,1733454648271,-435.43,0.00010741,2]
[344426971,1733454648282,-435.43,0.00010741,2]
[344426972,1733454648292,-434.95,0.00010741,2]
[344426973,1733454648303,-420.43058247,0.00010855,2]
[344426974,1733454648313,-199.30528856,0.000109,2]
[344426975,1733454648323,-199.30528856,0.000109,2]
[344426976,1733454648333,-200.0,0.00010959,2]
[344426977,1733454648344,-200.0,0.00010959,2]
[344426978,1733454648354,-200.0,0.00010959,2]
[344426979,1733454648364,-200.0,0.00010959,2]
[344426980,1733454648374,-200.0,0.00010959,2]
[344426981,1733454648385,-5135.86,0.00010959,2]
[344426982,1733454648395,-452.24,0.00010959,2]
[344426983,1733454648406,-150.0,0.00010959,2]
[344426984,1733454648416,-800.0,0.00010959,2]
[344426985,1733454648426,-800.0,0.00010959,2]
[344426986,1733454648437,-800.0,0.00010959,2]
[344426987,1733454648449,-800.0,0.00010959,2]
[344426988,1733454648466,-800.0,0.00010959,2]
[344426989,1733454648477,-800.0,0.00010959,2]
[344426990,1733454648492,-253.45,0.00010959,2]
[344426991,1733454648503,-800.0,0.00010959,2]
[344426992,1733454648514,-800.0,0.00010959,2]
[344426993,1733454648525,-800.0,0.00010959,2]
[344426994,1733454648536,-800.0,0.00010959,2]
[344426995,1733454648547,-800.0,0.00010959,2]
[344426996,1733454648557,-800.0,0.00010959,2]
[344426997,1733454648568,-150.25,0.00010959,2]
[344426998,1733454648579,-484.19,0.00010959,2]
[344426999,1733454648590,-1055.0,0.00011006,2]
[344427000,1733454648600,-420.43058247,0.000111,2]
[344427001,1733454648611,-81264.27072201,0.00011127,2]
[344427002,1733454648621,-78215.13674705,0.00011127,2]
[344427003,1733454648631,-420.43058247,0.00011258,2]
[344427004,1733454648642,-1613.0,0.00011272,2]
[344427005,1733454648652,-206.0,0.00011275,2]
[344427006,1733454648663,-1000.0,0.00011301,2]
[344427007,1733454648673,-454.69984499,0.000114,2]
[344427008,1733454648683,-662.45647405,0.000114,2]
[344427009,1733454648695,-1308.61640146,0.000114,2]
[344427010,1733454648708,-435.27,0.00011415,2]
[344427011,1733454648719,-768.05,0.00011415,2]
[344427012,1733454648729,-150.25,0.00011416,2]
[344427013,1733454648740,-484.19,0.00011416,2]
[344427014,1733454648752,-3172.22702657,0.00011431,2]
[344427015,1733454648762,-700.3,0.00011464,2]
[344427016,1733454648772,-14768.98,0.00011507,2]
[344427017,1733454648782,-2751.0,0.00011507,2]
[344427018,1733454648792,-1055.0,0.00011586,2]
[344427019,1733454648802,-2222.23,0.000116,2]
[344427020,1733454648812,-81264.27072201,0.00011718,2]
[344427021,1733454648822,-78215.13674705,0.00011718,2]
[344427022,1733454648833,-150.25,0.00011872,2]
[344427023,1733454648843,-484.19,0.00011872,2]
[344427024,1733454648854,-672.35058405,0.000119,2]
[344427025,1733454648864,-2000.0,0.00012,2]
[344427026,1733454648878,-3372.54845129,0.00012,10]
[344427027,1733454648888,-390.00043747,0.00012,2]
[344427028,1733454648898,-42666.93,0.00012055,2]
[344427029,1733454648909,-1055.0,0.00012196,2]
[344427030,1733454648919,-435.12,0.00012245,2]
[344427031,1733454648929,-435.12,0.00012245,2]
[344427032,1733454648939,-5800.0,0.00012278,2]
[344427033,1733454648950,-5800.0,0.00012287,2]
[344427034,1733454648962,-5800.0,0.00012295,2]
[344427035,1733454648972,-5800.0,0.00012295,2]
[344427036,1733454648982,-150.0,0.00012298,3]
[344427037,1733454648992,-5800.0,0.00012304,2]
[344427038,1733454649002,-5800.0,0.00012304,2]
[344427039,1733454649012,-81264.27072201,0.00012309,2]
[344427040,1733454649022,-78215.13674705,0.00012309,2]
[344427041,1733454649032,-5800.0,0.00012312,2]
[344427042,1733454649042,-5800.0,0.00012312,2]
[344427043,1733454649053,-5800.0,0.0001232,2]
[344427044,1733454649069,-5800.0,0.0001232,2]
[344427045,1733454649079,-442.30676,0.00012329,2]
[344427046,1733454649089,-442.30676,0.00012329,2]
[344427047,1733454649100,-95549.9,0.00012329,2]
[344427048,1733454649111,-1000.0,0.00012329,2]
[344427049,1733454649122,-150.25,0.00012329,2]
[344427050,1733454649132,-484.19,0.00012329,2]
[344427051,1733454649142,-5800.0,0.00012329,2]
[344427052,1733454649152,-5800.0,0.00012329,2]
[344427053,1733454649163,-5800.0,0.00012329,2]
[344427054,1733454649173,-150.0,0.00012398,2]
[344427055,1733454649183,-2258.0,0.00012399,2]
[344427056,1733454649194,-150.0,0.00012498,3]
[344427057,1733454649206,-4236.44,0.00012545,2]
[344427058,1733454649216,-728.02,0.00012566,2]
[344427059,1733454649227,-728.02,0.00012566,2]
[344427060,1733454649237,-364.12,0.00012566,2]
[344427061,1733454649247,-364.12,0.00012566,2]
[344427062,1733454649258,-150.0,0.00012598,2]
[344427063,1733454649268,-150.0,0.00012648,3]
[344427064,1733454649278,-150.0,0.00012698,2]
[344427065,1733454649289,-199.30528856,0.00012738,2]
[344427066,1733454649299,-150.0,0.00012748,3]
[344427067,1733454649310,-150.0,0.00012798,2]
[344427068,1733454649320,-136736.07471729,0.000128,2]
[344427069,1733454649330,-200.0,0.000128,4]
[344427070,1733454649340,-1055.0,0.00012837,2]
[344427071,1733454649350,-150.0,0.00012848,3]
[344427072,1733454649361,-150.0,0.00012898,2]
[344427073,1733454649372,-454.69984499,0.000129,2]
[344427074,1733454649382,-81264.27072201,0.000129,2]
[344427075,1733454649393,-200.0,0.000129,4]
[344427076,1733454649404,-78215.13674705,0.000129,2]
[344427077,1733454649414,-662.45647405,0.000129,2]
[344427078,1733454649425,-1308.61640146,0.000129,2]
[344427079,1733454649435,-12847.97605097,0.00012902,2]
[344427080,1733454649446,-150.0,0.00012948,3]
[344427081,1733454649460,-5000.0,0.00012948,5]
[344427082,1733454649471,-168.879305,0.00012972,2]
[344427083,1733454649481,-174.339521,0.00012972,2]
[344427084,1733454649491,-176.910292,0.00012972,2]
[344427085,1733454649502,-159.44857534,0.00012973,2]
[344427086,1733454649513,-150.0,0.00012998,2]
[344427087,1733454649523,-150.0,0.00013,2]
[344427088,1733454649533,-150.0,0.00013,2]
[344427089,1733454649544,-567.0,0.00013,2]
[344427090,1733454649555,-1262.0,0.00013,2]
[344427091,1733454649565,-17527515.02605069,0.00013,2]
[344427092,1733454649575,-815.19185421,0.00013,2]
[344427093,1733454649585,-175351.23649934,0.00013,2]
[344427094,1733454649595,-74880.98015388,0.00013,2]
[344427095,1733454649604,-151.0,0.00013,2]
[344427096,1733454649614,-151.0,0.00013,2]
[344427097,1733454649624,-253.646066,0.00013,2]
[344427098,1733454649634,-253.646066,0.00013,2]
[344427099,1733454649644,-1071.93706,0.00013,2]
[344427100,1733454649654,-1188.331915,0.00013,2]
[344427101,1733454649665,-1071.93706,0.00013,2]
[344427102,1733454649675,-1188.331915,0.00013,2]
[344427103,1733454649685,-175.839878,0.00013,2]
[344427104,1733454649696,-175.839878,0.00013,2]
[344427105,1733454649709,-151.0,0.00013,2]
[344427106,1733454649720,-151.0,0.00013,2]
[344427107,1733454649730,-151.830742,0.00013,2]
[344427108,1733454649740,-151.830742,0.00013,2]
[344427109,1733454649751,-416.250046,0.00013,2]
[344427110,1733454649761,-416.250046,0.00013,2]
[344427111,1733454649771,-151.0,0.00013,2]
[344427112,1733454650090,-151.0,0.00013,2]
[344427113,1733454650100,-374.932628,0.00013,2]
[344427114,1733454650110,-374.932628,0.00013,2]
[344427115,1733454650119,-164.181446,0.00013,2]
[344427116,1733454650129,-830.023112,0.00013,2]
[344427117,1733454650139,-830.023112,0.00013,2]
[344427118,1733454650149,-151.0,0.00013,2]
[344427119,1733454650159,-363.459314,0.00013,2]
[344427120,1733454650169,-363.459314,0.00013,2]
[344427121,1733454650180,-151.0,0.00013,2]
[344427122,1733454650189,-151.0,0.00013,2]
[344427123,1733454650199,-442.30676,0.00013,2]
[344427124,1733454650213,-442.30676,0.00013,2]
[344427125,1733454650223,-151.0,0.00013,2]
[344427126,1733454650234,-151.0,0.00013,2]
[344427127,1733454650244,-430.332449,0.00013,2]
[344427128,1733454650254,-151.843547,0.00013,2]
[344427129,1733454650264,-430.332449,0.00013,2]
[344427130,1733454650274,-151.0,0.00013,2]
[344427131,1733454650284,-499.605243,0.00013,2]
[344427132,1733454650294,-269.968608,0.00013,2]
[344427133,1733454650303,-499.605243,0.00013,2]
[344427134,1733454650313,-269.968608,0.00013,2]
[344427135,1733454650323,-166.216216,0.00013,2]
[344427136,1733454650333,-166.216216,0.00013,2]
[344427137,1733454650343,-151.0,0.00013,2]
[344427138,1733454650353,-708.106738,0.00013,2]
[344427139,1733454650364,-151.0,0.00013,2]
[344427140,1733454650374,-336.414902,0.00013,2]
[344427141,1733454650384,-336.414902,0.00013,2]
[344427142,1733454650400,-151.0,0.00013,2]
[344427143,1733454650416,-151.0,0.00013,2]
[344427144,1733454650427,-151.0,0.00013,2]
[344427145,1733454650438,-151.0,0.00013,2]
[344427146,1733454650449,-151.0,0.00013,2]
[344427147,1733454650464,-151.0,0.00013,2]
[344427148,1733454650477,-291.125427,0.00013,2]
[344427149,1733454650487,-291.125427,0.00013,2]
[344427150,1733454650498,-627.547047,0.00013,2]
[344427151,1733454650509,-627.547047,0.00013,2]
[344427152,1733454650519,-206.67154,0.00013,2]
[344427153,1733454650530,-206.67154,0.00013,2]
[344427154,1733454650540,-442.521793,0.00013,2]
[344427155,1733454650551,-442.521793,0.00013,2]
[344427156,1733454650561,-756.59978,0.00013,2]
[344427157,1733454650570,-756.59978,0.00013,2]
[344427158,1733454650580,-221.741559,0.00013,2]
[344427159,1733454650590,-221.741559,0.00013,2]
[344427160,1733454650599,-151.0,0.00013,2]
[344427161,1733454650609,-151.0,0.00013,2]
[344427162,1733454650619,-151.0,0.00013,2]
[344427163,1733454650629,-151.0,0.00013,2]
[344427164,1733454650640,-751.263273,0.00013,2]
[344427165,1733454650650,-751.263273,0.00013,2]
[344427166,1733454650659,-225.910357,0.00013,2]
[344427167,1733454650670,-225.910357,0.00013,2]
[344427168,1733454650681,-2506.479702,0.00013,2]
[344427169,1733454650691,-2506.479702,0.00013,2]
[344427170,1733454650701,-1681.373237,0.00013,2]
[344427171,1733454650713,-1681.373237,0.00013,2]
[344427172,1733454650725,-151.0,0.00013,2]
[344427173,1733454650735,-151.0,0.00013,2]
[344427174,1733454650744,-3369.620916,0.00013,2]
[344427175,1733454650754,-3369.620916,0.00013,2]
[344427176,1733454650764,-3024.45796,0.00013,2]
[344427177,1733454650774,-3024.45796,0.00013,2]
[344427178,1733454650784,-661.905607,0.00013,2]
[344427179,1733454650794,-661.905607,0.00013,2]
[344427180,1733454650804,-151.0,0.00013,2]
[344427181,1733454650814,-151.0,0.00013,2]
[344427182,1733454650824,-151.0,0.00013,2]
[344427183,1733454650834,-151.0,0.00013,2]
[344427184,1733454650844,-151.0,0.00013,2]
[344427185,1733454650855,-2004.0,0.00013,2]
[344427186,1733454650866,-150.0,0.00013,2]
[344427187,1733454650879,-631.0,0.00013,2]
[344427188,1733454650889,-1893.0,0.00013,2]
[344427189,1733454650899,-563.0,0.00013,2]
[344427190,1733454650908,-1252.0,0.00013,2]
[344427191,1733454650919,-3761.0,0.00013,2]
[344427192,1733454650930,-816.0,0.00013,2]
[344427193,1733454650940,-3529.0,0.00013,2]
[344427194,1733454650952,-535.0,0.00013,2]
[344427195,1733454650963,-973.0,0.00013,2]
[344427196,1733454650973,-13715.0,0.00013,2]
[344427197,1733454650983,-5964.0,0.00013,2]
[344427198,1733454650994,-150.0,0.00013,2]
[344427199,1733454651004,-1166.0,0.00013,2]
[344427200,1733454651014,-5094.44648206,0.0001305,2]
[344427201,1733454651026,-6666.7,0.000131,7]
[344427202,1733454651036,-435.12,0.00013108,2]
[344427203,1733454651047,-300.0,0.00013187,2]
[344427204,1733454651057,-150.0,0.00013187,2]
[344427205,1733454651068,-364.12,0.00013388,2]
[344427206,1733454651078,-364.12,0.00013388,2]
[344427207,1733454651090,-364.12,0.00013388,2]
[344427208,1733454651101,-364.12,0.00013388,2]
[344427209,1733454651111,-364.12,0.00013388,2]
[344427210,1733454651125,-1000.0,0.000135,2]
[344427211,1733454651136,-1055.0,0.00013513,2]
[344427212,1733454651147,-6614.03645207,0.00013621,2]
[344427213,1733454651158,-5000.0,0.00013621,2]
[344427214,1733454651169,-5000.0,0.00013621,2]
[344427215,1733454651179,-5000.0,0.00013621,2]
[344427216,1733454651190,-5000.0,0.00013621,2]
[344427217,1733454651200,-3162.0,0.00013639,2]
[344427218,1733454651213,-1373.56,0.00013698,2]
[344427219,1733454651223,-500.0,0.00013699,2]
[344427220,1733454651233,-500.0,0.00013699,2]
[344427221,1733454651244,-500.0,0.00013699,2]
[344427222,1733454651254,-500.0,0.00013699,2]
[344427223,1733454651265,-500.0,0.00013699,2]
[344427224,1733454651278,-500.0,0.00013699,2]
[344427225,1733454651288,-500.0,0.00013699,2]
[344427226,1733454651298,-500.0,0.00013699,2]
[344427227,1733454651309,-500.0,0.00013699,2]
[344427228,1733454651319,-500.0,0.00013699,2]
[344427229,1733454651330,-500.0,0.00013699,2]
[344427230,1733454651341,-500.0,0.00013699,2]
[344427231,1733454651351,-500.0,0.00013699,2]
[344427232,1733454651362,-500.0,0.00013699,2]
[344427233,1733454651373,-500.0,0.00013699,2]
[344427234,1733454651384,-200.0,0.00013699,2]
[344427235,1733454651394,-241.853283,0.00013699,2]
[344427236,1733454651404,-241.853283,0.00013699,2]
[344427237,1733454651414,-241.853283,0.00013699,2]
[344427238,1733454651424,-241.853283,0.00013699,2]
[344427239,1733454651434,-800.0,0.00013699,2]
[344427240,1733454651444,-800.0,0.00013699,2]
[344427241,1733454651456,-800.0,0.00013699,2]
[344427242,1733454651466,-800.0,0.00013699,2]
[344427243,1733454651475,-800.0,0.00013699,2]
[344427244,1733454651485,-800.0,0.00013699,2]
[344427245,1733454651495,-800.0,0.00013699,2]
[344427246,1733454651505,-800.0,0.00013699,2]
[344427247,1733454651515,-800.0,0.00013699,2]
[344427248,1733454651525,-800.0,0.00013699,2]
[344427249,1733454651534,-800.0,0.00013699,2]
[344427250,1733454651545,-800.0,0.00013699,2]
[344427251,1733454651556,-800.0,0.00013699,2]
[344427252,1733454651566,-800.0,0.00013699,2]
[344427253,1733454651577,-800.0,0.00013699,2]
[344427254,1733454651586,-800.0,0.00013699,2]
[344427255,1733454651597,-800.0,0.00013699,2]
[344427256,1733454651607,-800.0,0.00013699,2]
[344427257,1733454651617,-258.54,0.00013699,2]
[344427258,1733454651626,-800.0,0.00013699,2]
[344427259,1733454651636,-800.0,0.00013699,2]
[344427260,1733454651646,-800.0,0.00013699,2]
[344427261,1733454651656,-7712.8,0.00013699,2]
[344427262,1733454651666,-33375.85,0.00013699,2]
[344427263,1733454651676,-800.0,0.00013699,2]
[344427264,1733454651686,-3748.87,0.00013699,2]
[344427265,1733454651696,-800.0,0.00013699,2]
[344427266,1733454651707,-150.0,0.00013699,2]
[344427267,1733454651718,-200.0,0.00013699,2]
[344427268,1733454651729,-500.71,0.00013699,2]
[344427269,1733454651738,-800.0,0.00013699,2]
[344427270,1733454651748,-500.0,0.00013699,2]
[344427271,1733454651757,-800.0,0.00013699,2]
[344427272,1733454651767,-800.0,0.00013699,2]
[344427273,1733454651777,-800.0,0.00013699,2]
[344427274,1733454651787,-500.0,0.00013699,2]
[344427275,1733454651797,-500.0,0.00013699,2]
[344427276,1733454651807,-500.0,0.00013699,2]
[344427277,1733454651816,-500.0,0.00013699,2]
[344427278,1733454651827,-500.0,0.00013699,2]
[344427279,1733454651842,-159.16802475,0.00013699,2]
[344427280,1733454651853,-500.0,0.00013699,2]
[344427281,1733454651864,-500.0,0.00013699,2]
[344427282,1733454651876,-500.0,0.00013699,2]
[344427283,1733454651887,-2108.51,0.000137,2]
[344427284,1733454651897,-2108.51,0.000137,2]
[344427285,1733454651908,-2108.51,0.000137,2]
[344427286,1733454651918,-2108.51,0.000137,2]
[344427287,1733454651929,-2108.51,0.000137,2]
[344427288,1733454651939,-1162.51,0.000137,2]
[344427289,1733454651952,-1162.51,0.000137,2]
[344427290,1733454652181,-1162.51,0.000137,2]
[344427291,1733454652191,-1162.51,0.000137,2]
[344427292,1733454652201,-1162.51,0.000137,2]
[344427293,1733454652215,-314.18,0.00013726,3]
[344427294,1733454652224,-1373.56,0.00013835,2]
[344427295,1733454652234,-302.59,0.00013892,2]
[344427296,1733454652245,-304.77,0.00013892,2]
[344427297,1733454652255,-302.6,0.00013892,2]
[344427298,1733454652265,-302.37,0.00013892,2]
[344427299,1733454652276,-152.0,0.00013928,3]
[344427300,1733454652286,-435.12,0.0001393,2]
[344427301,1733454652296,-435.12,0.0001393,2]
[344427302,1733454652305,-435.12,0.0001393,2]
[344427303,1733454652315,-435.12,0.0001393,2]
[344427304,1733454652326,-438.72,0.0001393,2]
[344427305,1733454652335,-1373.56,0.00013972,2]
[344427306,1733454652345,-269.79198496,0.00014,2]
[344427307,1733454652356,-2000.0,0.00014,3]
[344427308,1733454652366,-150.0,0.00014008,2]
[344427309,1733454652376,-150.0,0.00014008,2]
[344427310,1733454652386,-150.0,0.00014008,2]
[344427311,1733454652396,-150.0,0.00014008,2]
[344427312,1733454652406,-300.0,0.00014008,2]
[344427313,1733454652416,-150.0,0.00014008,2]
[344427314,1733454652426,-150.0,0.00014008,2]
[344427315,1733454652436,-150.0,0.00014008,2]
[344427316,1733454652446,-152.0,0.00014008,2]
[344427317,1733454652456,-151.11,0.00014008,2]
[344427318,1733454652469,-150.0,0.00014008,2]
[344427319,1733454652480,-150.0,0.00014008,2]
[344427320,1733454652490,-150.0,0.00014008,2]
[344427321,1733454652500,-150.0,0.00014008,2]
[344427322,1733454652510,-150.0,0.00014008,2]
[344427323,1733454652520,-150.0,0.00014008,2]
[344427324,1733454652530,-150.0,0.00014008,2]
[344427325,1733454652540,-168.13,0.00014008,2]
[344427326,1733454652550,-150.0,0.00014008,2]
[344427327,1733454652560,-300.0,0.00014008,2]
[344427328,1733454652570,-300.0,0.00014008,2]
[344427329,1733454652580,-286.43,0.00014008,2]
[344427330,1733454652589,-150.0,0.00014059,2]
[344427331,1733454652599,-151.0,0.00014105,2]
[344427332,1733454652608,-1373.56,0.00014109,2]
[344427333,1733454652618,-2161.27887827,0.0001421,7]
[344427334,1733454652627,-1055.0,0.00014224,2]
[344427335,1733454652637,-1373.56,0.00014246,2]
[344427336,1733454652646,-1000.0,0.00014247,2]
[344427337,1733454652656,-1000.0,0.00014247,2]
[344427338,1733454652666,-1000.0,0.00014247,2]
[344427339,1733454652677,-1000.0,0.00014247,2]
[344427340,1733454652687,-517.97888272,0.00014247,2]
[344427341,1733454652696,-1000.0,0.00014247,2]
[344427342,1733454652706,-1000.0,0.00014247,2]
[344427343,1733454652717,-184.24283903,0.00014247,2]
[344427344,1733454652886,-201.0,0.0001426,2]
[344427345,1733454652896,-1373.56,0.00014383,2]
[344427346,1733454652906,-9816.90596677,0.0001439,2]
[344427347,1733454652918,-200.0,0.0001441,2]
[344427348,1733454652927,-150.0,0.0001442,2]
[344427349,1733454652936,-1373.56,0.0001452,2]
[344427350,1733454652945,-1373.56,0.00014657,2]
[344427351,1733454652955,-4236.44,0.00014708,2]
[344427352,1733454652967,-150.0,0.0001478,2]
[344427353,1733454652976,-1373.56,0.00014794,2]
[344427354,1733454652986,-1373.56,0.00014931,2]
[344427355,1733454652995,-152.0,0.00014957,4]
[344427356,1733454653005,-1055.0,0.00014973,2]
[344427357,1733454653015,-1949.59732938,0.00015,2]
[344427358,1733454653025,-500.0,0.00015,2]
[344427359,1733454653034,-961.61,0.00015,2]
[344427360,1733454653043,-7458.35032202,0.00015,2]
[344427361,1733454653053,-500.0,0.00015,2]
[344427362,1733454653063,-500.0,0.00015,2]
[344427363,1733454653073,-561.57,0.00015,2]
[344427364,1733454653082,-159.0,0.00015,10]
[344427365,1733454653091,-159.0,0.00015,10]
[344427366,1733454653101,-152.80158706,0.00015,5]
[344427367,1733454653110,-19592.6839319,0.00015,3]
[344427368,1733454653119,-9852.0,0.00015,2]
[344427369,1733454653128,-450.0,0.00015,2]
[344427370,1733454653138,-450.0,0.00015,2]
[344427371,1733454653148,-150.0,0.00015,15]
[344427372,1733454653157,-4427.0,0.00015003,2]
[344427373,1733454653167,-435.12,0.00015032,2]
[344427374,1733454653177,-435.12,0.00015032,2]
[344427375,1733454653186,-435.12,0.00015032,2]
[344427376,1733454653196,-435.12,0.00015032,2]
[344427377,1733454653205,-1373.56,0.00015068,2]
[344427378,1733454653216,-300.0,0.00015068,2]
[344427379,1733454653225,-296.10696488,0.000151,2]
[344427380,1733454653235,-150.0,0.00015114,2]
[344427381,1733454653245,-201.0,0.0001514,2]
[344427382,1733454653254,-150.0,0.00015141,2]
[344427383,1733454653264,-1373.56,0.00015205,2]
[344427384,1733454653273,-870.86,0.00015217,2]
[344427385,1733454653285,-1221.3210209,0.00015235,2]
[344427386,1733454653295,-1500.0,0.00015248,2]
[344427387,1733454653304,-1500.0,0.00015248,2]
[344427388,1733454653314,-1500.0,0.00015248,2]
[344427389,1733454653324,-1500.0,0.00015248,2]
[344427390,1733454653334,-1094.65562016,0.00015248,2]
[344427391,1733454653344,-1500.0,0.00015248,2]
[344427392,1733454653354,-1517.64,0.000153,2]
[344427393,1733454653364,-1373.56,0.00015342,2]
[344427394,1733454653374,-200.0,0.0001537,2]
[344427395,1733454653384,-15892.29772488,0.000154,2]
[344427396,1733454653394,-483.3171891,0.000154,2]
[344427397,1733454653403,-1373.56,0.00015479,2]
[344427398,1733454653413,-150.0,0.00015501,2]
[344427399,1733454653423,-1373.56,0.00015616,2]
[344427400,1733454653432,-1373.56,0.00015753,2]
[344427401,1733454653442,-1055.0,0.00015761,2]
[344427402,1733454653451,-435.12,0.00015853,2]
[344427403,1733454653463,-435.12,0.00015853,2]
[344427404,1733454653472,-435.12,0.00015853,2]
[344427405,1733454653482,-281.18,0.00015853,2]
[344427406,1733454653492,-150.0,0.00015862,2]
[344427407,1733454653501,-1373.56,0.0001589,2]
[344427408,1733454653510,-152.0,0.00015985,5]
[344427409,1733454653520,-400.0,0.00015999,2]
[344427410,1733454653530,-400.0,0.00015999,2]
[344427411,1733454653540,-400.0,0.00015999,2]
[344427412,1733454653550,-400.0,0.00015999,2]
[344427413,1733454653559,-404.61610846,0.00015999,2]
[344427414,1733454653569,-480.88176865,0.00015999,2]
[344427415,1733454653579,-400.0,0.00015999,2]
[344427416,1733454653588,-400.0,0.00015999,2]
[344427417,1733454653598,-400.0,0.00015999,2]
[344427418,1733454653607,-400.0,0.00015999,2]
[344427419,1733454653617,-400.0,0.00015999,2]
[344427420,1733454653626,-400.0,0.00015999,2]
[344427421,1733454653636,-400.0,0.00015999,2]
[344427422,1733454653647,-400.0,0.00015999,2]
[344427423,1733454653657,-400.0,0.00015999,2]